bitfinex/quotes_BTCUSD_20251113
["timestamp","ask_amount","ask_price","bid_price","bid_amount"]
[1763017857676,0.28797833,103850.0,103840.0,0.00013984]
[1763017857917,0.24565833,103850.0,103840.0,0.00013984]
[1763017858131,0.28797833,103850.0,103840.0,0.00013984]
[1763017858870,0.24565833,103850.0,103840.0,0.00013984]
[1763017859075,0.28797833,103850.0,103840.0,0.00013984]
[1763017860891,1.28797833,103850.0,103840.0,0.00013984]
[1763017861238,1.05307288,103850.0,103840.0,1.02679904]
[1763017861511,1.28797833,103850.0,103840.0,1.02679904]
[1763017861981,1.09539288,103850.0,103840.0,1.02679904]
[1763017862470,1.28797833,103850.0,103840.0,0.77627144]
[1763017863061,1.09539288,103850.0,103840.0,0.77627144]
[1763017863925,1.28797833,103850.0,103840.0,1.02679904]
[1763017864095,1.28797833,103850.0,103840.0,0.77627144]
[1763017864318,1.28797833,103850.0,103840.0,0.58366744]
[1763017864942,1.28797833,103850.0,103840.0,0.33313984]
[1763017865168,1.28797833,103850.0,103840.0,0.57366744]
[1763017865975,1.28797833,103850.0,103840.0,0.32313984]
[1763017866303,1.28797833,103850.0,103840.0,0.77627144]
[1763017867245,1.28797833,103850.0,103840.0,0.58366744]
[1763017867663,1.28797833,103850.0,103840.0,0.77627144]
[1763017868328,1.28797833,103850.0,103840.0,0.00013984]
[1763017871385,1.28797833,103850.0,103840.0,0.19274384]
[1763017871581,1.28797833,103850.0,103840.0,0.00013984]
[1763017872431,1.28797833,103850.0,103840.0,0.4868597]
[1763017872606,1.28797833,103850.0,103840.0,0.2942557]
[1763017873201,1.28797833,103850.0,103840.0,0.4868597]
[1763017873721,1.09539288,103850.0,103840.0,1.10397556]
[1763017874041,1.09539288,103850.0,103840.0,1.11397556]
[1763017875041,1.05307288,103850.0,103840.0,0.52574384]
[1763017875252,1.00148288,103850.0,103840.0,1.15629556]
[1763017876521,1.00148288,103850.0,103840.0,1.15729556]
[1763017876873,1.00048288,103850.0,103840.0,0.98898837]
[1763017877082,1.01287288,103850.0,103840.0,0.98898837]
[1763017879569,1.24397833,103850.0,103840.0,0.79638437]
[1763017879884,1.24397833,103850.0,103840.0,0.32413984]
[1763017880201,1.24397833,103850.0,103840.0,0.00113984]
[1763017880412,1.24397833,103850.0,103840.0,0.00013984]
[1763017880776,1.24497833,103850.0,103840.0,0.00013984]
[1763017882733,1.24497833,103850.0,103840.0,0.19274384]
[1763017882937,1.24497833,103850.0,103840.0,0.00013984]
[1763017883522,1.24497833,103850.0,103840.0,0.19274384]
[1763017883872,1.24497833,103850.0,103840.0,0.00013984]
[1763017885874,1.24497833,103850.0,103840.0,0.19274384]
[1763017886230,1.24497833,103850.0,103840.0,0.00013984]
[1763017891957,1.66490286,103850.0,103840.0,0.00013984]
[1763017892688,1.66390286,103850.0,103840.0,0.00013984]
[1763017892903,1.66590286,103850.0,103840.0,0.00013984]
[1763017893488,1.66690286,103850.0,103840.0,0.00013984]
[1763017894312,1.68494056,103850.0,103840.0,0.00013984]
[1763017894862,1.78656553,103850.0,103840.0,0.00013984]
[1763017895164,1.68494056,103850.0,103840.0,0.00013984]
[1763017895367,1.24697833,103850.0,103840.0,0.00013984]
[1763017895904,1.66690286,103850.0,103840.0,0.00013984]
[1763017898943,1.54113768,103850.0,103840.0,0.00013984]
[1763017899161,1.24697833,103850.0,103840.0,0.00013984]
[1763017899395,1.54113768,103850.0,103840.0,0.00013984]
[1763017900105,1.24697833,103850.0,103840.0,0.00013984]
[1763017900313,1.54113768,103850.0,103840.0,0.00013984]
[1763017903635,1.24697833,103850.0,103840.0,0.00013984]
[1763017903859,1.54113768,103850.0,103840.0,0.00013984]
[1763017908035,1.63955803,103850.0,103840.0,0.00013984]
[1763017908273,1.54113768,103850.0,103840.0,0.00013984]
[1763017910794,1.60260459,103850.0,103840.0,0.00013984]
[1763017911223,1.55918585,103850.0,103840.0,0.00013984]
[1763017914667,1.2650265,103850.0,103840.0,0.00013984]
[1763017914865,1.55918585,103850.0,103840.0,0.00013984]
[1763017915010,1.2650265,103850.0,103840.0,0.00013984]
[1763017915243,1.3072665,103850.0,103840.0,0.00013984]
[1763017917398,1.2650265,103850.0,103840.0,0.00013984]
[1763017917601,1.3072665,103850.0,103840.0,0.00013984]
[1763017919968,1.3072665,103850.0,103840.0,0.19274384]
[1763017920745,1.30728233,103850.0,103840.0,0.48690319]
[1763017921489,1.03393688,103850.0,103840.0,1.10406254]
[1763017921665,1.00348288,103850.0,103840.0,1.12406254]
[1763017922488,1.00248288,103850.0,103840.0,1.12406254]
[1763017922898,1.00348288,103850.0,103840.0,1.12406254]
[1763017923100,1.00348288,103850.0,103840.0,1.46164063]
[1763017923507,1.00348288,103850.0,103840.0,1.18451635]
[1763017923508,1.00248288,103850.0,103840.0,1.18451635]
[1763017923709,1.00048288,103850.0,103840.0,1.14209761]
[1763017924166,1.00048288,103850.0,103840.0,1.4796757]
[1763017924398,1.01269288,103850.0,103840.0,1.18551635]
[1763017924593,1.00048288,103850.0,103840.0,1.18551635]
[1763017924796,1.01269288,103850.0,103840.0,1.13209761]
[1763017924951,1.00048288,103850.0,103840.0,1.13209761]
[1763017925377,1.02889288,103850.0,103840.0,0.54377891]
[1763017925606,1.05355288,103850.0,103840.0,1.13209761]
[1763017926149,1.02889288,103850.0,103840.0,1.13209761]
[1763017927293,1.01269288,103850.0,103840.0,1.13209761]
[1763017928182,1.02889288,103850.0,103840.0,1.13209761]
[1763017928649,1.01269288,103850.0,103840.0,1.13209761]
[1763017928852,1.24613833,103850.0,103840.0,0.82090319]
[1763017929011,1.24613833,103850.0,103840.0,0.00113984]
[1763017929211,1.24613833,103850.0,103840.0,0.48790319]
[1763017929425,1.24613833,103850.0,103840.0,0.81090319]
[1763017929692,1.24613833,103850.0,103840.0,0.32413984]
[1763017931141,1.24613833,103850.0,103840.0,0.73729093]
[1763017931582,1.24613833,103850.0,103840.0,0.54468693]
[1763017932010,1.24613833,103850.0,103840.0,0.00113984]
[1763017932011,1.46668542,103850.0,103840.0,0.00113984]
[1763017932416,1.46668542,103850.0,103840.0,0.00013984]
[1763017932860,1.24613833,103850.0,103840.0,0.00013984]
[1763017934617,1.46668542,103850.0,103840.0,0.00013984]
[1763017934816,1.26417201,103850.0,103840.0,0.00013984]
[1763017935024,1.4847191,103850.0,103840.0,0.00013984]
[1763017935327,1.70526619,103850.0,103840.0,0.00013984]
[1763017935527,1.26417201,103850.0,103840.0,0.00013984]
[1763017937933,1.4847191,103850.0,103840.0,0.00013984]
[1763017938080,1.70526619,103850.0,103840.0,0.00013984]
[1763017938469,1.4847191,103850.0,103840.0,0.00013984]
[1763017938651,1.70526619,103850.0,103840.0,0.00013984]
[1763017941354,1.96923202,103850.0,103840.0,0.00013984]
[1763017941565,1.74868493,103850.0,103840.0,0.00013984]
[1763017942046,1.96923202,103850.0,103840.0,0.00013984]
[1763017942255,1.39450948,103850.0,103840.0,0.00013984]
[1763017942457,2.05615075,103850.0,103840.0,0.00013984]
[1763017942671,2.05815075,103850.0,103840.0,0.00013984]
[1763017942880,2.06915074,103850.0,103840.0,0.00013984]
[1763017945892,1.84860365,103850.0,103840.0,0.00013984]
[1763017946064,1.83860366,103850.0,103840.0,0.00013984]
[1763017946300,1.39633074,103850.0,103840.0,0.00013984]
[1763017946474,1.61687783,103850.0,103840.0,0.00013984]
[1763017946955,1.64580555,103850.0,103840.0,0.00013984]
[1763017947815,1.60356555,103850.0,103840.0,0.00013984]
[1763017948013,1.64580555,103850.0,103840.0,0.00013984]
[1763017948177,1.42525846,103850.0,103840.0,0.00013984]
[1763017948380,1.39633074,103850.0,103840.0,0.00013984]
[1763017948605,1.61687783,103850.0,103840.0,0.00013984]
[1763017948764,1.39633074,103850.0,103840.0,0.00013984]
[1763017948966,1.35409074,103850.0,103840.0,0.00013984]
[1763017949180,1.37829706,103850.0,103840.0,0.22068693]
[1763017950061,1.37829706,103850.0,103840.0,0.00013984]
[1763017952578,1.37829706,103850.0,103840.0,0.22068693]
[1763017953104,1.33605706,103850.0,103840.0,0.22068693]
[1763017953318,1.37829706,103850.0,103840.0,0.22068693]
[1763017953646,1.05655288,103850.0,103840.0,0.95683802]
[1763017953849,1.09879288,103850.0,103840.0,1.17738511]
[1763017954110,1.03189288,103850.0,103840.0,0.95683802]
[1763017954259,1.05476288,103850.0,103840.0,1.17738511]
[1763017954468,1.24734833,103850.0,103840.0,0.76423402]
[1763017954674,1.24634833,103850.0,103840.0,0.95683802]
[1763017955072,1.24734833,103850.0,103840.0,0.95683802]
[1763017955618,1.24534833,103850.0,103840.0,0.95683802]
[1763017956005,1.05376288,103850.0,103840.0,0.95683802]
[1763017957474,1.01469288,103850.0,103840.0,1.84902638]
[1763017957675,1.00248288,103850.0,103840.0,1.84902638]
[1763017958530,1.00248288,103850.0,103840.0,1.87794272]
[1763017958720,1.00048288,103850.0,103840.0,1.87794272]
[1763017958899,1.00048288,103850.0,103840.0,1.87894272]
[1763017961222,1.05127288,103850.0,103840.0,0.55566018]
[1763017961407,1.05127288,103850.0,103840.0,0.52674384]
[1763017961606,1.05127288,103850.0,103840.0,0.96783802]
[1763017961820,1.05127288,103850.0,103840.0,1.18838511]
[1763017962422,1.05127288,103850.0,103840.0,0.96783802]
[1763017963058,1.24385833,103850.0,103840.0,0.96783802]
[1763017963252,1.24385833,103850.0,103840.0,0.77523402]
[1763017963505,1.24385833,103850.0,103840.0,0.76523402]
[1763017964427,1.28609833,103850.0,103840.0,0.76523402]
[1763017964633,1.28609833,103850.0,103840.0,0.54368693]
[1763017965552,1.28609833,103850.0,103840.0,0.00013984]
[1763017966490,1.28609833,103850.0,103840.0,0.22068693]
[1763017966883,1.09351288,103850.0,103840.0,0.41329093]
[1763017967083,1.28609833,103850.0,103840.0,0.22068693]
[1763017968236,1.28609833,103850.0,103840.0,0.41329093]
[1763017968451,1.28609833,103850.0,103840.0,0.19274384]
[1763017968671,1.09351288,103850.0,103840.0,0.63383802]
[1763017968879,1.09351288,103850.0,103840.0,0.64383802]
[1763017970118,1.01212288,103850.0,103840.0,1.18738511]
[1763017970276,1.00048288,103850.0,103840.0,1.18738511]
[1763017970691,1.00048288,103850.0,103840.0,1.4079322]
[1763017970897,1.00048288,103850.0,103840.0,1.4179322]
[1763017971498,1.00048288,103850.0,103840.0,1.19738511]
[1763017971688,1.02840288,103850.0,103840.0,1.18738511]
[1763017973425,1.01212288,103850.0,103840.0,1.18738511]
[1763017974247,1.01212288,103850.0,103840.0,1.21630078]
[1763017974477,1.24385833,103850.0,103840.0,0.36205551]
[1763017974698,1.05127288,103850.0,103840.0,1.18738511]
[1763017975111,1.00048288,103850.0,103840.0,1.18738511]
[1763017975978,1.01212288,103850.0,103840.0,1.18738511]
[1763017976398,1.20470833,103850.0,103840.0,1.18738511]
[1763017977046,1.01212288,103850.0,103840.0,1.18738511]
[1763017980692,1.20470833,103850.0,103840.0,1.18738511]
[1763017980947,1.00048288,103850.0,103840.0,1.18738511]
[1763017981154,1.00048288,103850.0,103840.0,1.84902638]
[1763017981386,1.00048288,103850.0,103840.0,1.87794205]
[1763017981702,1.00048288,103850.0,103840.0,1.21630078]
[1763017982307,1.01190288,103850.0,103840.0,1.21630078]
[1763017982831,1.21971833,103850.0,103840.0,1.21630078]
[1763017983032,1.24453833,103850.0,103840.0,1.21630078]
[1763017983685,1.24453833,103850.0,103840.0,0.77423402]
[1763017983899,1.28673833,103850.0,103840.0,0.54368693]
[1763017984119,1.28673833,103850.0,103840.0,0.00013984]
[1763017984534,1.28673833,103850.0,103840.0,0.54368693]
[1763017986682,1.28673833,103850.0,103840.0,0.22068693]
[1763017989754,1.28673833,103850.0,103840.0,0.41329093]
[1763017989953,1.28673833,103850.0,103840.0,0.63383802]
[1763017990628,1.28673833,103850.0,103840.0,0.44123402]
[1763017990869,1.28673833,103850.0,103840.0,0.63383802]
[1763017991073,1.28673833,103850.0,103840.0,0.48680733]
[1763017991247,1.28673833,103850.0,103840.0,0.29420333]
[1763017991397,1.28673833,103850.0,103840.0,0.00013984]
[1763017991598,1.28673833,103850.0,103840.0,0.29420333]
[1763017992048,1.28673833,103850.0,103840.0,0.00013984]
[1763017992250,1.59885402,103850.0,103840.0,0.00013984]
[1763017993683,1.59985402,103850.0,103840.0,0.00013984]
[1763017994312,1.60085402,103850.0,103840.0,0.00013984]
[1763017995485,1.30679053,103850.0,103840.0,0.00013984]
[1763017995886,1.28873833,103850.0,103840.0,0.00013984]
[1763017996143,1.26458299,103850.0,103840.0,0.00013984]
[1763017996343,1.28873833,103850.0,103840.0,0.29420333]
[1763017996573,1.24653833,103850.0,103840.0,0.49680733]
[1763017996760,1.28873833,103850.0,103840.0,0.49680733]
[1763017997140,1.28873833,103850.0,103840.0,0.00013984]
[1763017997548,1.60084531,103850.0,103840.0,0.00013984]
[1763017999694,1.30678182,103850.0,103840.0,0.00013984]
[1763018000339,1.28873833,103850.0,103840.0,0.00013984]
[1763018000675,1.30677847,103850.0,103840.0,0.00013984]
[1763018001700,1.28873833,103850.0,103840.0,0.00013984]
[1763018002926,1.28873833,103850.0,103840.0,0.29420333]
[1763018003126,1.24653833,103850.0,103840.0,0.29420333]
[1763018003305,1.24653833,103850.0,103840.0,0.49680733]
[1763018003505,1.05395288,103850.0,103840.0,0.79087082]
[1763018003712,1.02913288,103850.0,103840.0,1.11387082]
[1763018003912,1.01390288,103850.0,103840.0,1.11387082]
[1763018004135,1.00248288,103850.0,103840.0,1.11387082]
[1763018004589,1.00048288,103850.0,103840.0,1.11387082]
[1763018006449,1.00048288,103850.0,103840.0,1.14278649]
[1763018007091,1.00048288,103850.0,103840.0,1.11387082]
[1763018008811,1.01647288,103850.0,103840.0,1.11387082]
[1763018009268,1.00048288,103850.0,103840.0,1.11387082]
[1763018010667,1.00048288,103850.0,103840.0,0.62720333]
[1763018010668,1.23362833,103850.0,103840.0,0.62720333]
[1763018010890,1.23362833,103850.0,103840.0,0.51574384]
[1763018011520,1.23362833,103850.0,103840.0,0.32313984]
[1763018012221,1.23362833,103850.0,103840.0,0.51574384]
[1763018013214,1.23362833,103850.0,103840.0,0.32313984]
[1763018014034,1.23362833,103850.0,103840.0,0.51574384]
[1763018014489,1.23362833,103850.0,103840.0,0.80980733]
[1763018015799,1.23362833,103850.0,103840.0,0.61720333]
[1763018016041,1.24609833,103850.0,103840.0,0.61720333]
[1763018016333,1.24609833,103850.0,103840.0,0.32313984]
[1763018018513,1.24609833,103850.0,103840.0,0.61720333]
[1763018018711,1.24609833,103850.0,103840.0,0.32313984]
[1763018019526,1.54016182,103850.0,103840.0,0.00013984]
[1763018019747,1.24609833,103850.0,103840.0,0.00013984]
[1763018022118,1.24709833,103850.0,103840.0,0.00013984]
[1763018022323,1.24809833,103850.0,103840.0,0.00013984]
[1763018023327,1.54216182,103850.0,103840.0,0.00013984]
[1763018024090,1.5601984,103850.0,103840.0,0.00013984]
[1763018025088,1.56019838,103850.0,103840.0,0.00013984]
[1763018025527,1.26613489,103850.0,103840.0,0.00013984]
[1763018025841,1.56019838,103850.0,103840.0,0.00013984]
[1763018026043,1.54216182,103850.0,103840.0,0.00013984]
[1763018026275,1.24809833,103850.0,103840.0,0.00013984]
[1763018026487,1.29029833,103850.0,103840.0,0.29420333]
[1763018027156,1.29029833,103850.0,103840.0,0.48680733]
[1763018027157,1.24809833,103850.0,103840.0,0.48680733]
[1763018027381,1.29029833,103850.0,103840.0,0.30420333]
[1763018027836,1.29029833,103850.0,103840.0,0.29420333]
[1763018028034,1.29029833,103850.0,103840.0,0.00013984]
[1763018029163,1.29029833,103850.0,103840.0,0.48680733]
[1763018029388,1.29029833,103850.0,103840.0,0.29420333]
[1763018029841,1.29029833,103850.0,103840.0,0.00013984]
[1763018032143,1.29029833,103850.0,103840.0,0.48680733]
[1763018032588,1.29029833,103850.0,103840.0,0.29420333]
[1763018032950,1.29029833,103850.0,103840.0,0.48680733]
[1763018034111,1.01495288,103850.0,103840.0,0.78087082]
[1763018034339,1.01495288,103850.0,103840.0,1.11387082]
[1763018034552,1.03068288,103850.0,103840.0,1.11387082]
[1763018035016,1.00248288,103850.0,103840.0,1.10387082]
[1763018035229,1.03068288,103850.0,103840.0,0.33313984]
[1763018035453,1.03068288,103850.0,103840.0,0.00013984]
[1763018035454,1.24809833,103850.0,103840.0,0.00013984]
[1763018035791,1.24709833,103850.0,103840.0,0.00013984]
[1763018036000,1.24609833,103850.0,103840.0,0.00013984]
[1763018036197,1.54016182,103850.0,103840.0,0.00013984]
[1763018036403,1.24609833,103850.0,103840.0,0.00013984]
[1763018037031,1.54016182,103850.0,103840.0,0.00013984]
[1763018037385,1.24609833,103850.0,103840.0,0.00013984]
[1763018037588,1.54016182,103850.0,103840.0,0.00013984]
[1763018038293,1.54216182,103850.0,103840.0,0.00013984]
[1763018043240,1.24809833,103850.0,103840.0,0.00013984]
[1763018043452,1.29029833,103850.0,103840.0,0.29420333]
[1763018044304,1.24809833,103850.0,103840.0,0.48680733]
[1763018044504,1.29029833,103850.0,103840.0,0.48680733]
[1763018044749,1.29029833,103850.0,103840.0,0.29420333]
[1763018044937,1.29029833,103850.0,103840.0,0.48680733]
[1763018045260,1.00248288,103850.0,103840.0,1.40793431]
[1763018045471,1.00248288,103850.0,103840.0,1.11387082]
[1763018045937,1.05245288,103850.0,103840.0,1.11387082]
[1763018046389,1.05215288,103850.0,103840.0,1.11387082]
[1763018046630,1.02821288,103850.0,103840.0,1.11387082]
[1763018046844,1.00018288,103850.0,103840.0,1.11387082]
[1763018048429,1.00018288,103850.0,103840.0,1.13387082]
[1763018048899,1.00018288,103850.0,103840.0,1.42887548]
[1763018049345,1.02721288,103850.0,103840.0,0.94560029]
[1763018049946,1.05115288,103850.0,103840.0,0.94560029]
[1763018051149,1.24373833,103850.0,103840.0,0.00013984]
[1763018051359,1.24373833,103850.0,103840.0,0.76630365]
[1763018051791,1.24373833,103850.0,103840.0,0.32313984]
[1763018053947,1.24373833,103850.0,103840.0,0.51574384]
[1763018054327,1.24373833,103850.0,103840.0,0.32313984]
[1763018056205,1.24373833,103850.0,103840.0,0.51574384]
[1763018056576,1.24373833,103850.0,103840.0,0.32313984]
[1763018057206,1.24373833,103850.0,103840.0,0.51574384]
[1763018057630,1.24373833,103850.0,103840.0,0.32313984]
[1763018059062,1.24373833,103850.0,103840.0,0.51574384]
[1763018059998,1.24373833,103850.0,103840.0,0.76630365]
[1763018060224,1.24373833,103850.0,103840.0,0.77630365]
[1763018060225,1.05115288,103850.0,103840.0,0.77630365]
[1763018060468,1.24373833,103850.0,103840.0,0.58369965]
[1763018060744,1.24373833,103850.0,103840.0,0.77630365]
[1763018060995,1.05115288,103850.0,103840.0,0.77630365]
[1763018061237,1.02721288,103850.0,103840.0,1.02686346]
[1763018061451,1.00018288,103850.0,103840.0,1.02686346]
[1763018063056,1.00018288,103850.0,103840.0,1.03686346]
[1763018063316,1.02721288,103850.0,103840.0,0.53674384]
[1763018063527,1.34215868,103850.0,103840.0,0.01113984]
[1763018063741,1.34215868,103850.0,103840.0,0.00113984]
[1763018063742,1.28589833,103850.0,103840.0,0.00113984]
[1763018064563,1.28589833,103850.0,103840.0,0.00013984]
[1763018067078,1.53645814,103850.0,103840.0,0.00013984]
[1763018067280,1.28589833,103850.0,103840.0,0.00013984]
[1763018071119,1.24373833,103850.0,103840.0,0.00013984]
[1763018071368,1.28589833,103850.0,103840.0,0.45330365]
[1763018071796,1.28589833,103850.0,103840.0,0.20274384]
[1763018072019,1.28589833,103850.0,103840.0,0.26069965]
[1763018072233,1.28589833,103850.0,103840.0,0.01013984]
[1763018072458,1.28589833,103850.0,103840.0,0.26069965]
[1763018072709,1.28589833,103850.0,103840.0,0.45330365]
[1763018073386,1.21979833,103850.0,103840.0,0.45330365]
[1763018073592,1.28462833,103850.0,103840.0,0.20274384]
[1763018073811,1.28462833,103850.0,103840.0,0.45330365]
[1763018074010,1.28462833,103850.0,103840.0,0.26069965]
[1763018074726,1.28462833,103850.0,103840.0,0.45330365]
[1763018074936,1.28462833,103850.0,103840.0,0.26069965]
[1763018075145,1.28462833,103850.0,103840.0,0.45330365]
[1763018076316,1.09204288,103850.0,103840.0,0.45330365]
[1763018076549,1.06937288,103850.0,103840.0,0.70386346]
[1763018077164,1.02721288,103850.0,103840.0,0.70386346]
[1763018078228,1.01170288,103850.0,103840.0,0.70386346]
[1763018079369,1.01170288,103850.0,103840.0,0.75563235]
[1763018080451,1.00018288,103850.0,103840.0,0.75563235]
[1763018080665,1.00018288,103850.0,103840.0,1.07863235]
[1763018085060,1.00018288,103850.0,103840.0,1.2389389]
[1763018085261,1.02881288,103850.0,103840.0,1.2389389]
[1763018085464,1.05148288,103850.0,103840.0,0.96669462]
[1763018085605,1.24406833,103850.0,103840.0,0.96669462]
[1763018086261,1.00018288,103850.0,103840.0,1.18717001]
[1763018086479,1.00018288,103850.0,103840.0,1.2389389]
[1763018088874,1.05148288,103850.0,103840.0,1.2399389]
[1763018090158,1.02881288,103850.0,103840.0,1.2399389]
[1763018090743,1.00018288,103850.0,103840.0,1.97199292]
[1763018090999,1.00018288,103850.0,103840.0,1.98907153]
[1763018091601,1.00018288,103850.0,103840.0,1.98807153]
[1763018092069,1.00118288,103850.0,103840.0,1.98807153]
[1763018092512,1.00318288,103850.0,103840.0,1.91909353]
[1763018093356,1.00318288,103850.0,103840.0,1.87567479]
[1763018093539,1.00318288,103850.0,103840.0,1.47644506]
[1763018093895,1.00318288,103850.0,103840.0,1.25596967]
[1763018094313,1.03181288,103850.0,103840.0,1.25596967]
[1763018095767,1.01539288,103850.0,103840.0,1.25596967]
[1763018096892,1.01539288,103850.0,103840.0,1.47644506]
[1763018097457,1.05448288,103850.0,103840.0,0.57746489]
[1763018097681,1.05448288,103850.0,103840.0,1.23889106]
[1763018097887,1.03181288,103850.0,103840.0,1.23889106]
[1763018098511,1.24706833,103850.0,103840.0,0.57746489]
[1763018098726,1.24706833,103850.0,103840.0,1.01841567]
[1763018099138,1.05448288,103850.0,103840.0,1.01841567]
[1763018100215,1.05448288,103850.0,103840.0,1.23889106]
[1763018101549,1.28922833,103850.0,103840.0,0.00013984]
[1763018101796,1.28922833,103850.0,103840.0,0.22061523]
[1763018102234,1.28622833,103850.0,103840.0,0.00013984]
[1763018102675,1.83743156,103850.0,103840.0,0.00013984]
[1763018102885,1.74522507,103850.0,103840.0,0.00013984]
[1763018103113,1.52474968,103850.0,103840.0,0.00013984]
[1763018103327,1.30427429,103850.0,103840.0,0.00013984]
[1763018103532,1.28622833,103850.0,103840.0,0.22061523]
[1763018103743,1.28622833,103850.0,103840.0,0.00013984]
[1763018103973,1.28622833,103850.0,103840.0,0.63369462]
[1763018104385,1.09364288,103850.0,103840.0,0.63469462]
[1763018104596,1.09364288,103850.0,103840.0,0.19374384]
[1763018104808,1.09464288,103850.0,103840.0,0.63469462]
[1763018105023,1.02981288,103850.0,103840.0,0.90589106]
[1763018105242,1.02881288,103850.0,103840.0,1.23889106]
[1763018105581,1.00018288,103850.0,103840.0,1.45936645]
[1763018105794,1.00018288,103850.0,103840.0,1.97099292]
[1763018107093,1.01181288,103850.0,103840.0,1.18717001]
[1763018107298,1.00018288,103850.0,103840.0,1.4766234]
[1763018107499,1.01018288,103850.0,103840.0,1.4766234]
[1763018107703,1.01018288,103850.0,103840.0,1.91757418]
[1763018108349,1.01018288,103850.0,103840.0,1.92757418]
[1763018108932,1.01018288,103850.0,103840.0,1.10570014]
[1763018109133,1.01018288,103850.0,103840.0,1.14911888]
[1763018110237,1.01018288,103850.0,103840.0,1.16826741]
[1763018110907,1.01018288,103850.0,103840.0,1.50700759]
[1763018111451,1.01118288,103850.0,103840.0,1.50700759]
[1763018111858,1.01218288,103850.0,103840.0,1.50700759]
[1763018112748,1.01218288,103850.0,103840.0,1.49700759]
[1763018113418,1.01218288,103850.0,103840.0,1.07714835]
[1763018113607,1.02381288,103850.0,103840.0,1.07714835]
[1763018114087,1.01218288,103850.0,103840.0,1.07714835]
[1763018114793,1.01218288,103850.0,103840.0,1.00817035]
[1763018115001,1.01218288,103850.0,103840.0,1.07714835]
[1763018117302,1.01218288,103850.0,103840.0,1.03372961]
[1763018117481,1.02381288,103850.0,103840.0,1.03372961]
[1763018117720,1.04004288,103850.0,103840.0,1.01646072]
[1763018117966,1.06409288,103850.0,103840.0,1.01646072]
[1763018118665,1.04004288,103850.0,103840.0,1.01646072]
[1763018119521,1.25667833,103850.0,103840.0,0.06184895]
[1763018119734,1.25667833,103850.0,103840.0,0.00013984]
[1763018120141,1.25567833,103850.0,103840.0,0.00013984]
[1763018120477,1.25767833,103850.0,103840.0,0.00013984]
[1763018120680,1.25667833,103850.0,103840.0,0.00013984]
[1763018120882,1.25867833,103850.0,103840.0,0.00013984]
[1763018122268,1.67453757,103850.0,103840.0,0.00013984]
[1763018122477,1.67453757,103850.0,103840.0,0.00113984]
[1763018122729,1.25467833,103850.0,103840.0,0.00113984]
[1763018123138,1.25467833,103850.0,103840.0,0.00013984]
[1763018123572,1.29683833,103850.0,103840.0,0.00013984]
[1763018126680,1.29683833,103850.0,103840.0,0.19274384]
[1763018126871,1.29683833,103850.0,103840.0,0.61260308]
[1763018128125,1.29683833,103850.0,103840.0,0.61460308]
[1763018128331,1.06209288,103850.0,103840.0,0.62460308]
[1763018128533,1.03804288,103850.0,103840.0,0.62460308]
[1763018128737,1.25467833,103850.0,103840.0,0.61460308]
[1763018129412,1.06209288,103850.0,103840.0,0.61460308]
[1763018129612,1.25467833,103850.0,103840.0,0.61460308]
[1763018129914,1.25467833,103850.0,103840.0,0.19474384]
[1763018130138,1.06209288,103850.0,103840.0,0.19474384]
[1763018130360,1.25467833,103850.0,103840.0,0.61460308]
[1763018130578,1.06209288,103850.0,103840.0,0.61460308]
[1763018130798,1.02181288,103850.0,103840.0,0.62460308]
[1763018131017,1.02181288,103850.0,103840.0,0.94760308]
[1763018131208,1.01018288,103850.0,103840.0,0.94760308]
[1763018131673,1.03808288,103850.0,103840.0,0.94760308]
[1763018133312,1.01018288,103850.0,103840.0,0.94760308]
[1763018133517,1.01018288,103850.0,103840.0,0.95760308]
[1763018133747,1.01018288,103850.0,103840.0,1.37746232]
[1763018134390,1.01018288,103850.0,103840.0,1.48985906]
[1763018134599,1.01018288,103850.0,103840.0,1.50483296]
[1763018134810,1.01018288,103850.0,103840.0,1.43585496]
[1763018135013,1.01018288,103850.0,103840.0,1.43485496]
[1763018135422,1.01018288,103850.0,103840.0,1.43385496]
[1763018135828,1.01118288,103850.0,103840.0,1.43385496]
[1763018137279,1.03908288,103850.0,103840.0,0.54071774]
[1763018137491,1.03908288,103850.0,103840.0,0.96057698]
[1763018138119,1.02324288,103850.0,103840.0,0.96057698]
[1763018138335,1.01118288,103850.0,103840.0,1.39043622]
[1763018138748,1.01118288,103850.0,103840.0,0.97057698]
[1763018138955,1.01118288,103850.0,103840.0,1.01399572]
[1763018139464,1.01118288,103850.0,103840.0,1.43385496]
[1763018140215,1.01118288,103850.0,103840.0,1.50283296]
[1763018141029,1.01118288,103850.0,103840.0,1.5317459]
[1763018142478,1.01118288,103850.0,103840.0,1.05846792]
[1763018142686,1.01118288,103850.0,103840.0,0.98948992]
[1763018143524,1.01118288,103850.0,103840.0,0.96057698]
[1763018143734,1.03908288,103850.0,103840.0,0.96057698]
[1763018144559,1.06212288,103850.0,103840.0,0.96057698]
[1763018145403,1.03908288,103850.0,103840.0,0.96057698]
[1763018145613,1.02324288,103850.0,103840.0,0.96057698]
[1763018150389,1.01118288,103850.0,103840.0,0.96057698]
[1763018152941,1.02324288,103850.0,103840.0,1.12865238]
[1763018153115,1.02324288,103850.0,103840.0,1.19763038]
[1763018154292,1.01118288,103850.0,103840.0,1.25104912]
[1763018154626,1.02118288,103850.0,103840.0,1.25104912]
[1763018156814,1.02118288,103850.0,103840.0,1.54501644]
[1763018157020,1.02118288,103850.0,103840.0,1.25104912]
[1763018157373,1.02118288,103850.0,103840.0,1.279962]
[1763018158748,1.02118288,103850.0,103840.0,1.57392932]
[1763018158749,1.00552376,103850.0,103840.0,1.57392932]
[1763018158947,1.00552376,103850.0,103840.0,1.210984]
[1763018159342,1.00552376,103850.0,103840.0,1.29757324]
[1763018160185,1.00552376,103850.0,103840.0,1.59154056]
[1763018161676,0.28283632,103850.0,103840.0,1.58400284]
[1763018161916,0.28283632,103850.0,103840.0,1.59400283]
[1763018163990,0.28283632,103850.0,103840.0,1.58400284]
[1763018164408,1e-08,103850.0,103840.0,1.59400283]
[1763018165712,0.0002,103870.0,103840.0,1.99400283]
[1763018165911,0.0002,103870.0,103860.0,1.41746887]
[1763018166262,0.0002,103870.0,103860.0,1.43439225]
[1763018166466,0.0002,103870.0,103860.0,1.4860903]
[1763018166670,0.0002,103870.0,103860.0,1.51499377]
[1763018167828,0.0002,103870.0,103860.0,1.58689734]
[1763018168912,0.0012,103870.0,103860.0,1.58689734]
[1763018169967,0.0012,103870.0,103860.0,1.63031608]
[1763018171637,0.00168273,103870.0,103860.0,1.63031608]
[1763018171796,0.00168273,103870.0,103860.0,1.57861803]
[1763018171993,0.00168273,103870.0,103860.0,1.63026868]
[1763018172204,0.00168273,103870.0,103860.0,1.63026659]
[1763018173015,0.00168273,103870.0,103860.0,2.07015659]
[1763018174339,0.00168273,103870.0,103860.0,2.08755956]
[1763018176058,0.00168273,103870.0,103860.0,0.7657676]
[1763018176270,0.00168273,103870.0,103860.0,2.08755956]
[1763018178235,0.00168273,103870.0,103860.0,2.01565599]
[1763018178429,0.00168273,103870.0,103860.0,1.94660446]
[1763018178628,0.00168273,103870.0,103860.0,2.01565599]
[1763018181128,0.00168273,103870.0,103860.0,2.08725632]
[1763018185241,0.00168273,103870.0,103860.0,2.23375632]
[1763018186457,0.00168273,103870.0,103860.0,2.16215599]